bitfinex-derivatives/quotes_BTCF0:USTF0_20251215
["timestamp","ask_amount","ask_price","bid_price","bid_amount"]
[1765826592356,0.70957,86317.0,86316.0,0.3379355]
[1765826592560,0.81957,86317.0,86316.0,0.6700255]
[1765826592758,0.11008433,86317.0,86316.0,0.6700255]
[1765826593257,0.11008433,86317.0,86316.0,0.7108676]
[1765826593462,0.11008433,86317.0,86316.0,0.6720255]
[1765826593854,0.11008433,86317.0,86316.0,0.6700255]
[1765826594050,0.83123973,86317.0,86316.0,0.6720255]
[1765826594254,0.81965433,86317.0,86316.0,0.6720255]
[1765826594453,0.83123973,86317.0,86316.0,0.3419355]
[1765826594650,0.83123973,86317.0,86316.0,0.0155855]
[1765826594855,0.81965433,86317.0,86316.0,0.0155855]
[1765826595053,0.11008433,86317.0,86316.0,0.8817155]
[1765826595356,0.11008433,86317.0,86316.0,0.8837155]
[1765826595754,0.11008433,86317.0,86316.0,0.9245576]
[1765826595959,0.11008433,86317.0,86316.0,0.9225576]
[1765826596167,0.11008433,86317.0,86316.0,0.6750255]
[1765826597353,0.11008433,86317.0,86316.0,0.8847155]
[1765826597560,0.12166973,86317.0,86316.0,0.8847155]
[1765826597755,0.83123973,86317.0,86316.0,0.6750255]
[1765826598053,0.11008433,86317.0,86316.0,0.6760255]
[1765826598754,0.81965433,86317.0,86316.0,0.6750255]
[1765826599164,0.81965433,86317.0,86316.0,0.6720255]
[1765826599368,0.81965433,86317.0,86316.0,0.6750255]
[1765826599562,0.11008433,86317.0,86316.0,0.6750255]
[1765826599761,0.11008433,86317.0,86316.0,0.6720255]
[1765826600071,0.11008433,86317.0,86316.0,0.6750255]
[1765826600259,0.11008433,86317.0,86316.0,0.6730255]
[1765826600465,0.11008433,86317.0,86316.0,0.6750255]
[1765826600655,0.46828433,86317.0,86316.0,0.6750255]
[1765826601055,0.46828433,86317.0,86316.0,0.6730255]
[1765826601270,0.46828433,86317.0,86316.0,0.6750255]
[1765826602072,0.11008433,86317.0,86316.0,0.6750255]
[1765826602563,0.00017374,86325.0,86324.0,0.6700244]
[1765826602770,0.11017374,86325.0,86324.0,1.0308244]
[1765826602968,0.00017374,86325.0,86324.0,1.0308244]
[1765826603472,0.00017374,86325.0,86324.0,1.12474021]
[1765826603670,0.00017374,86325.0,86324.0,1.12574021]
[1765826604962,0.00017374,86325.0,86324.0,1.12674021]
[1765826606360,3.74e-06,86325.0,86324.0,1.24258217]
[1765826606786,3.74e-06,86325.0,86324.0,1.34258217]
[1765826607073,3.74e-06,86325.0,86324.0,1.74258217]
[1765826607769,3.74e-06,86325.0,86324.0,3.24358217]
[1765826608171,2.3e-07,86338.0,86337.0,0.6700227]
[1765826608368,2.3e-07,86338.0,86337.0,1.7611427]
[1765826608763,2.3e-07,86338.0,86337.0,1.87698466]
[1765826609477,0.0097696,86361.0,86360.0,0.8797096]
[1765826609665,0.1797696,86361.0,86360.0,1.2405096]
[1765826610470,0.8893396,86361.0,86360.0,1.04720737]
[1765826611265,0.1797696,86361.0,86360.0,1.25789737]
[1765826611469,0.1797696,86361.0,86360.0,1.25989737]
[1765826611873,0.0597696,86361.0,86360.0,1.37569104]
[1765826612078,0.3582,86375.0,86374.0,0.6865777]
[1765826612267,0.87017,86375.0,86374.0,0.3608]
[1765826612468,0.87017,86375.0,86360.0,0.58987777]
[1765826612469,0.69992,86368.0,86367.0,0.3608]
[1765826612673,0.80992,86368.0,86367.0,0.3608]
[1765826612968,0.80992,86368.0,86367.0,1.04211]
[1765826613168,0.80992,86368.0,86367.0,0.3608]
[1765826613475,0.80992,86368.0,86367.0,1.04211]
[1765826613866,0.80992,86368.0,86367.0,0.3608]
[1765826614474,0.7114995,86361.0,86360.0,0.01638777]
[1765826614674,0.69992,86361.0,86360.0,0.6928896]
[1765826615275,0.70223542,86378.0,86377.0,0.6928873]
[1765826615472,0.90223542,86378.0,86377.0,1.0536873]
[1765826615678,0.90223542,86378.0,86377.0,0.3608]
[1765826616082,0.90223542,86378.0,86377.0,0.69598]
[1765826616278,0.00231542,86378.0,86377.0,1.04211]
[1765826616581,0.10231542,86378.0,86377.0,1.04211]
[1765826616973,0.10331542,86378.0,86377.0,1.04211]
[1765826617370,0.80423542,86378.0,86377.0,1.04211]
[1765826617569,0.80423542,86378.0,86377.0,0.3608]
[1765826617974,0.80423542,86378.0,86377.0,0.69598]
[1765826618174,0.10431542,86378.0,86377.0,1.15788088]
[1765826618684,0.44941542,86378.0,86377.0,1.04211]
[1765826618873,0.10431542,86378.0,86377.0,1.04211]
[1765826619478,0.80423542,86378.0,86377.0,1.04211]
[1765826619885,0.44941542,86378.0,86377.0,1.04211]
[1765826620584,0.10431542,86378.0,86377.0,1.04211]
[1765826621080,0.80423542,86378.0,86377.0,0.3608]
[1765826622076,0.80423542,86378.0,86377.0,0.3723773]
[1765826622384,0.80423542,86378.0,86377.0,0.3608]
[1765826623283,0.80323542,86378.0,86377.0,1.04211]
[1765826623480,0.80223542,86378.0,86377.0,0.69898]
[1765826623780,0.80223542,86378.0,86377.0,1.04511]
[1765826625085,0.80223542,86378.0,86377.0,1.04311]
[1765826625286,0.80223542,86378.0,86377.0,1.04511]
[1765826626184,0.10231542,86378.0,86377.0,1.04511]
[1765826626571,0.80223542,86378.0,86377.0,1.04311]
[1765826626784,0.10231542,86378.0,86377.0,1.04511]
[1765826627677,0.10231542,86378.0,86377.0,1.04311]
[1765826627885,0.10231542,86378.0,86377.0,1.04511]
[1765826628682,0.10231542,86378.0,86377.0,1.04411]
[1765826628886,0.80223542,86378.0,86377.0,1.04511]
[1765826629278,0.80223542,86378.0,86377.0,1.04311]
[1765826629589,0.80223542,86378.0,86377.0,1.04711]
[1765826630386,0.80223542,86378.0,86377.0,1.04411]
[1765826630583,0.80223542,86378.0,86377.0,1.04711]
[1765826630784,0.80223542,86378.0,86377.0,0.005]
[1765826632476,0.69992,86376.0,86375.0,0.0115775]
[1765826632787,0.69992,86376.0,86375.0,0.3467575]
[1765826633777,0.69992,86376.0,86375.0,0.3487575]
[1765826634379,0.69992,86376.0,86375.0,0.3517575]
[1765826634775,0.69992,86376.0,86375.0,0.6978875]
[1765826634988,0.69992,86376.0,86375.0,0.3517575]
[1765826635193,0.69992,86376.0,86375.0,0.0165775]
[1765826635381,0.69992,86376.0,86375.0,0.005]
[1765826635576,0.69992,86376.0,86375.0,0.0145776]
[1765826635786,0.69992,86376.0,86375.0,0.73747721]
[1765826636191,0.69992,86376.0,86375.0,0.6968876]
[1765826636390,0.69992,86376.0,86375.0,0.39134721]
[1765826636586,0.69992,86376.0,86375.0,0.004]
[1765826636795,0.69992,86376.0,86375.0,0.04458961]
[1765826636986,0.69992,86376.0,86375.0,0.04258961]
[1765826637192,0.69992,86376.0,86375.0,0.002]
[1765826637383,0.69992,86375.0,86374.0,0.3723777]
[1765826638080,0.7114976,86375.0,86374.0,0.3723777]
[1765826638281,0.69992,86375.0,86374.0,0.3608]
[1765826638590,0.69992,86375.0,86374.0,0.42174576]
[1765826639288,0.69992,86375.0,86374.0,0.3608]
[1765826639594,0.69992,86375.0,86374.0,0.69798]
[1765826639984,0.69992,86375.0,86374.0,0.69598]
[1765826640188,0.69992,86375.0,86374.0,1.04611]
[1765826640794,0.69992,86375.0,86374.0,0.42585672]
[1765826641295,0.3451,86375.0,86374.0,1.04611]
[1765826641598,0.69992,86375.0,86374.0,1.04611]
[1765826641794,0.3451,86375.0,86374.0,1.04611]
[1765826642100,0.00231542,86378.0,86377.0,0.67239]
[1765826642289,0.03231542,86378.0,86377.0,0.67239]
[1765826643493,0.03231542,86378.0,86377.0,0.67339]
[1765826643693,0.72778542,86378.0,86377.0,0.67339]
[1765826644797,0.72778542,86378.0,86377.0,0.001]
[1765826645001,0.69547,86371.0,86370.0,0.44302203]
[1765826645298,0.69547,86371.0,86360.0,0.11879877]
[1765826645299,0.69547,86361.0,86360.0,0.11879877]
[1765826645492,0.69547,86361.0,86360.0,0.01616646]
[1765826645693,0.70705,86357.0,86356.0,0.46343231]
[1765826645889,0.70705,86357.0,86356.0,0.3608]
[1765826646090,0.70705,86357.0,86356.0,0.01615664]
[1765826646301,0.69547,86352.0,86351.0,0.10263231]
[1765826646506,0.69547,86352.0,86347.0,8.393e-05]
[1765826646507,0.7070512,86348.0,86347.0,8.393e-05]
[1765826646804,0.7070512,86348.0,86347.0,0.01666098]
[1765826647196,0.7070512,86348.0,86347.0,0.09837755]
[1765826647596,0.7070512,86348.0,86347.0,0.01666098]
[1765826647997,0.7070512,86348.0,86347.0,0.09837491]
[1765826648705,0.8039623,86340.0,86339.0,0.00017374]
[1765826648900,0.8138836,86330.0,86329.0,0.14298746]
[1765826649208,0.69547,86325.0,86324.0,1.5]
[1765826649508,0.69547,86324.0,86323.0,0.0115846]
[1765826649805,0.69555623,86324.0,86323.0,0.0115846]
[1765826650000,8.623e-05,86324.0,86323.0,0.6839746]
[1765826650207,8.623e-05,86324.0,86323.0,0.69992551]
[1765826650706,0.02411794,86324.0,86323.0,0.7610968]
[1765826650910,0.02411794,86324.0,86323.0,0.69992551]
[1765826651612,0.71958794,86324.0,86323.0,0.01595091]
[1765826651812,0.69547,86321.0,86320.0,0.3608]
[1765826652706,0.71950171,86321.0,86320.0,0.37696928]
[1765826652909,0.71950171,86321.0,86320.0,0.37996928]
[1765826653105,0.71950171,86321.0,86320.0,0.01916928]
[1765826653406,0.71950171,86321.0,86320.0,0.02216928]
[1765826655002,0.77950171,86321.0,86320.0,0.006]
[1765826655507,0.77950171,86321.0,86320.0,0.02212455]
[1765826658215,0.79108651,86321.0,86320.0,0.02212455]
[1765826658800,0.79108651,86321.0,86315.0,0.00017374]
[1765826658801,0.7070555,86316.0,86315.0,0.00017374]
[1765826659001,1.42551,86316.0,86315.0,0.00017374]
[1765826659606,1.42551,86316.0,86315.0,0.67256374]
[1765826659804,1.44954171,86316.0,86315.0,0.68868565]
[1765826660003,0.75407171,86316.0,86315.0,0.69268565]
[1765826660207,8.623e-05,86324.0,86323.0,0.67239]
[1765826660406,0.05008623,86324.0,86323.0,1.0447746]
[1765826660608,0.05008623,86324.0,86323.0,0.6839746]
[1765826660811,0.39256623,86324.0,86323.0,0.6839746]
[1765826661009,0.05008623,86324.0,86323.0,0.6839746]
[1765826661607,0.05008623,86324.0,86323.0,0.6879746]
[1765826662115,8.623e-05,86324.0,86323.0,0.6879746]
[1765826665707,8.623e-05,86324.0,86323.0,1.4180146]
[1765826667217,0.00017374,86332.0,86331.0,0.6839735]
[1765826667416,0.07017374,86332.0,86331.0,1.0447735]
[1765826668405,0.53076,86348.0,86347.0,0.6839714]
[1765826668723,0.34248,86351.0,86350.0,0.887481]
[1765826669014,0.34248,86351.0,86350.0,0.350131]
[1765826669015,0.85547,86351.0,86350.0,0.350131]
[1765826669222,0.85547,86351.0,86350.0,0.011581]
[1765826669923,0.85547,86351.0,86350.0,0.350131]
[1765826670515,0.85847,86351.0,86350.0,0.011581]
[1765826670822,0.85547,86351.0,86350.0,0.011581]
[1765826671022,0.85547,86351.0,86350.0,0.351131]
[1765826671319,0.85547,86351.0,86350.0,0.890481]
[1765826671914,0.85547,86351.0,86350.0,1.251281]
[1765826672112,0.16,86351.0,86350.0,1.251281]
[1765826672311,0.16,86351.0,86350.0,1.250281]
[1765826672513,0.16,86351.0,86350.0,1.251281]
[1765826672716,0.5117,86351.0,86350.0,1.251281]
[1765826672920,0.16,86351.0,86350.0,1.250281]
[1765826673127,0.00017374,86359.0,86358.0,0.6743999]
[1765826673326,0.18017374,86359.0,86358.0,1.0351999]
[1765826674220,0.18017374,86359.0,86358.0,1.0371999]
[1765826674423,0.18017374,86359.0,86358.0,1.0391999]
[1765826674618,0.88036374,86359.0,86358.0,1.0391999]
[1765826674818,0.53187374,86359.0,86358.0,1.0391999]
[1765826675021,0.18017374,86359.0,86358.0,1.0391999]
[1765826675216,0.88036374,86359.0,86358.0,1.0391999]
[1765826675619,0.53187374,86359.0,86358.0,1.0381999]
[1765826676221,0.53187374,86359.0,86358.0,1.0371999]
[1765826676421,0.53187374,86359.0,86358.0,1.0381999]
[1765826676822,0.53187374,86359.0,86358.0,1.0361999]
[1765826677022,0.53187374,86359.0,86358.0,1.0381999]
[1765826677413,0.53187374,86359.0,86358.0,1.0666918]
[1765826677623,0.53187374,86359.0,86358.0,1.0646918]
[1765826677827,0.53187374,86359.0,86358.0,1.0666918]
[1765826678331,0.53187374,86359.0,86358.0,1.0656918]
[1765826678626,0.53187374,86359.0,86358.0,1.0666918]
[1765826678929,0.53187374,86359.0,86358.0,1.0656918]
[1765826679227,0.53187374,86359.0,86358.0,1.0666918]
[1765826680023,0.53187374,86359.0,86358.0,0.3753799]
[1765826680024,0.88036374,86359.0,86358.0,0.3753799]
[1765826680224,0.90612785,86359.0,86358.0,0.003]
[1765826681524,0.90612732,86359.0,86358.0,0.003]
[1765826681725,0.7117707,86352.0,86351.0,0.3445908]
[1765826681918,0.77019,86352.0,86351.0,0.3445908]
[1765826682721,0.77019,86352.0,86351.0,0.6744008]
[1765826683119,0.07,86352.0,86351.0,0.6744008]
[1765826684130,0.07,86352.0,86351.0,0.6754008]
[1765826684930,0.07,86352.0,86351.0,0.6774008]
[1765826685225,0.07,86352.0,86351.0,0.6804008]
[1765826686129,0.00017374,86359.0,86358.0,0.6743999]
[1765826686433,1.459496,86387.0,86377.0,0.6743973]
[1765826686633,0.9182665,86378.0,86377.0,1.0351973]
[1765826687219,0.2180765,86378.0,86377.0,1.0351973]
[1765826688334,0.2210765,86378.0,86377.0,1.0351973]
[1765826688737,0.2210765,86378.0,86377.0,1.05218777]
[1765826689538,0.9212665,86378.0,86377.0,1.1463977]
[1765826690032,0.9212665,86378.0,86377.0,1.05218777]
[1765826690236,0.9212665,86378.0,86377.0,0.01699047]
[1765826690539,0.70019,86376.0,86375.0,0.0115776]
[1765826690732,0.86595108,86376.0,86375.0,0.0115776]
[1765826690921,0.86595108,86376.0,86375.0,0.6743976]
[1765826691333,0.84019,86376.0,86375.0,0.6743976]
[1765826691633,0.84019,86376.0,86375.0,0.01759451]
[1765826691834,0.141,86376.0,86375.0,0.66282]
[1765826692638,0.142,86376.0,86375.0,0.66282]
[1765826692940,0.142,86376.0,86375.0,0.68014438]
[1765826693628,0.142,86376.0,86375.0,1.40974438]
[1765826695140,0.012,86376.0,86375.0,1.40974438]
[1765826695341,0.002,86376.0,86375.0,1.40974438]
[1765826696737,0.001,86376.0,86375.0,1.40974438]
[1765826697041,0.00231542,86378.0,86377.0,0.66282]
[1765826697231,0.04231542,86378.0,86377.0,0.66282]
[1765826697737,0.70019,86400.0,86399.0,0.0115743]
[1765826698040,0.89019,86400.0,86399.0,0.0115743]
[1765826698243,0.70019,86394.0,86393.0,1.02362]
[1765826698542,0.86019,86394.0,86393.0,1.02362]
[1765826698734,0.86019,86394.0,86393.0,1.0351952]
[1765826699944,0.86019,86394.0,86393.0,0.7063852]
[1765826700133,0.8717651,86394.0,86393.0,0.7063852]
[1765826700328,0.8717651,86394.0,86393.0,0.69481]
[1765826700529,0.8717651,86394.0,86380.0,0.0115768]
[1765826700530,0.7117668,86381.0,86380.0,0.0115768]
[1765826700743,0.70019,86378.0,86377.0,0.3608]
[1765826701037,0.0115788,86366.0,86363.0,0.09228958]
[1765826701239,0.06667,86373.0,86352.0,0.36092898]
[1765826701240,0.70019,86359.0,86358.0,0.06091109]
[1765826701442,0.70019,86353.0,86352.0,0.06104007]
[1765826701841,0.70019,86353.0,86352.0,0.42278683]
[1765826702043,0.70019,86353.0,86352.0,0.07819613]
[1765826702236,0.70019,86353.0,86352.0,0.01728504]
[1765826702438,0.70019,86353.0,86352.0,0.07819613]
[1765826702638,0.70019,86353.0,86352.0,0.01728504]
[1765826702840,0.6862511,86349.0,86348.0,0.06091109]
[1765826703145,0.6862511,86349.0,86345.0,0.06091109]
[1765826703146,0.6862515,86346.0,86345.0,0.06091109]
[1765826703340,0.67467,86345.0,86344.0,0.05453722]
[1765826703741,0.67467,86345.0,86344.0,0.00017363]
[1765826703937,0.67477129,86345.0,86344.0,0.00017363]
[1765826704140,0.67477129,86345.0,86344.0,0.01725741]
[1765826704544,0.67477129,86345.0,86344.0,0.01825741]
[1765826704842,0.67477129,86345.0,86344.0,0.70500741]
[1765826705344,0.00010129,86345.0,86344.0,0.70500741]
[1765826705537,0.67477129,86345.0,86344.0,0.70700741]
[1765826705948,0.34731129,86345.0,86344.0,0.71858921]
[1765826706447,0.00010129,86345.0,86344.0,0.79979993]
[1765826707346,0.00010129,86345.0,86344.0,0.71858921]
[1765826710049,0.67477129,86345.0,86344.0,0.71858921]
[1765826710744,0.67477129,86345.0,86344.0,0.02025741]
[1765826711154,1.03557129,86345.0,86344.0,0.02025741]
[1765826711542,1.23557129,86345.0,86344.0,0.02025741]
[1765826712752,1.23557129,86345.0,86344.0,0.70700741]
[1765826713142,1.23557129,86345.0,86344.0,0.02025741]
[1765826714542,1.63557129,86345.0,86344.0,0.02025741]
[1765826714739,0.67467,86339.0,86325.0,0.08126243]
[1765826714938,0.67467,86339.0,86315.0,0.3608]
[1765826714939,0.67467,86324.0,86321.0,0.08126243]
[1765826715252,0.84467,86324.0,86323.0,0.7218946]
[1765826715546,0.84467,86324.0,86323.0,0.38981774]
[1765826715749,0.84467,86324.0,86323.0,0.01743314]
[1765826715940,0.84467,86324.0,86320.0,0.0115849]
[1765826715941,0.67467,86321.0,86320.0,0.0115849]
[1765826716143,0.86467,86321.0,86320.0,0.0115849]
[1765826716654,0.67467,86319.0,86318.0,0.08126243]
[1765826716839,0.86467,86319.0,86318.0,0.08126243]
[1765826717438,0.86467,86319.0,86318.0,0.01761733]
[1765826717652,0.67467,86318.0,86317.0,0.09284773]
[1765826717948,0.80467,86318.0,86317.0,0.09284773]
[1765826718350,0.80467,86318.0,86317.0,0.10980672]
[1765826719150,0.81467,86318.0,86317.0,0.79655672]
[1765826719359,0.81467,86318.0,86317.0,0.71729429]
[1765826719852,0.85467,86318.0,86317.0,0.71729429]
[1765826720056,0.85467,86318.0,86317.0,0.01895899]
[1765826720357,0.85467,86318.0,86317.0,0.02095899]
[1765826720851,0.67467,86316.0,86315.0,0.00017375]
[1765826721041,0.67467,86316.0,86315.0,0.71532724]
[1765826721042,0.17,86316.0,86315.0,0.71532724]
[1765826721660,1.20547,86316.0,86315.0,0.36650154]
[1765826722151,1.20547,86316.0,86315.0,0.01899154]
[1765826722347,0.84467,86316.0,86315.0,0.70774154]
[1765826722548,0.84467,86316.0,86315.0,0.70674154]
[1765826723050,0.84467,86316.0,86315.0,0.70574154]
[1765826723255,0.84667,86316.0,86315.0,0.70374154]
[1765826723755,0.85667,86316.0,86315.0,0.70374154]
[1765826723953,0.85567,86316.0,86315.0,0.70374154]
[1765826724259,0.83567,86316.0,86315.0,0.70374154]
[1765826724445,0.161,86316.0,86315.0,0.70374154]
[1765826724644,0.16,86316.0,86315.0,0.70374154]
[1765826724852,8.611e-05,86318.0,86317.0,0.68675]
[1765826725247,0.3608,86341.0,86331.0,0.6983335]
[1765826725559,0.87484375,86332.0,86331.0,0.6983335]
[1765826726143,0.87488662,86332.0,86331.0,0.6983335]
[1765826726343,0.20021662,86332.0,86331.0,0.6983335]
[1765826726545,0.07021662,86332.0,86331.0,0.6983335]
[1765826726868,0.0115807,86352.0,86350.0,0.68675]
[1765826727053,1.20547,86351.0,86350.0,0.698331]
[1765826729156,0.5308,86351.0,86350.0,0.698331]
[1765826729360,0.17,86351.0,86350.0,0.698331]
[1765826730360,0.51721,86351.0,86350.0,0.698331]
[1765826730658,0.84467,86351.0,86350.0,0.698331]
[1765826731258,0.17,86351.0,86350.0,0.698331]
[1765826731652,0.67467,86347.0,86346.0,0.19804]
[1765826731862,1.20547,86347.0,86346.0,0.54755]
[1765826732562,0.84467,86347.0,86346.0,0.87315]
[1765826732861,0.84467,86347.0,86344.0,0.0115817]
[1765826732862,0.70292,86345.0,86344.0,0.0115817]
[1765826733165,0.87292,86345.0,86344.0,0.32684]
[1765826733459,0.70292,86343.0,86342.0,0.00017375]
[1765826733664,0.89292,86343.0,86342.0,0.00017375]
[1765826734563,0.70292,86332.0,86331.0,0.0813541]
[1765826734766,1.25372,86332.0,86329.0,0.0929378]
[1765826734957,0.70292,86330.0,86329.0,0.0115837]
[1765826735268,0.86292,86330.0,86329.0,0.0115837]
[1765826735960,0.0115838,86329.0,86326.0,0.0115841]
[1765826736266,0.70292,86324.0,86323.0,0.0115845]
[1765826736763,0.70292,86323.0,86322.0,0.10158133]
[1765826736972,0.89292,86323.0,86322.0,0.10158133]
[1765826737152,0.89292,86323.0,86321.0,0.10175508]
[1765826737356,0.7145047,86322.0,86321.0,0.10175508]
[1765826737564,0.9045047,86322.0,86321.0,0.00017375]
[1765826737970,0.89292,86322.0,86321.0,0.00017375]
[1765826739170,1.25372,86322.0,86321.0,0.00017375]
[1765826739655,1.98324,86322.0,86321.0,0.00017375]
[1765826740469,1.98324,86322.0,86321.0,0.00117375]
[1765826744067,1.98324,86322.0,86308.0,0.0001475]
[1765826744068,0.6918365,86309.0,86308.0,0.0001475]
[1765826744271,0.8484275,86301.0,86300.0,4e-05]
[1765826744479,1.3792275,86301.0,86300.0,4e-05]
[1765826745169,2.1089044,86301.0,86300.0,4e-05]
[1765826745571,1.9523144,86301.0,86300.0,0.88628]
[1765826745776,1.9523144,86301.0,86300.0,4e-05]
[1765826746661,1.9523144,86301.0,86292.0,0.00017375]
[1765826746662,0.68025,86299.0,86292.0,0.00017375]
[1765826746857,0.86025,86299.0,86292.0,0.00017375]
[1765826747269,0.86025,86299.0,86295.0,0.01813753]
[1765826747773,0.86425,86299.0,86295.0,0.01813753]
[1765826748471,0.6918386,86293.0,86292.0,0.00017375]
[1765826748668,1.9622786,86293.0,86292.0,0.00017375]
[1765826748861,1.9622786,86293.0,86292.0,3.75e-06]
[1765826750166,1.9652786,86293.0,86292.0,3.75e-06]
[1765826750566,1.9682786,86293.0,86292.0,3.75e-06]
[1765826753463,2.3682786,86293.0,86292.0,3.75e-06]
[1765826753674,2.3682786,86293.0,86250.0,0.21462]
[1765826753675,0.6918428,86262.0,86250.0,0.21462]
[1765826753883,1.98253563,86262.0,86250.0,0.21462]
[1765826754572,1.98253563,86262.0,86261.0,0.01812803]
[1765826754770,1.98253563,86262.0,86261.0,9.222e-05]
[1765826754971,1.98253563,86262.0,86253.0,0.00017385]
[1765826754972,0.6918432,86259.0,86253.0,0.00017385]
[1765826755179,0.8918432,86259.0,86258.0,4e-08]
[1765826755376,0.8918432,86259.0,86253.0,0.00017385]
[1765826755377,0.6918438,86254.0,86253.0,3.89e-06]
[1765826755569,1.9724038,86254.0,86253.0,3.89e-06]
[1765826756775,1.9734038,86254.0,86253.0,3.89e-06]
[1765826756980,1.9754038,86254.0,86253.0,3.89e-06]
[1765826757778,0.68025,86219.0,86213.0,0.0115993]
[1765826757971,1.19117074,86219.0,86218.0,0.32932971]
[1765826758276,0.19012074,86219.0,86218.0,0.69205009]
[1765826758477,0.00012074,86219.0,86218.0,0.69205009]
[1765826758982,0.00012074,86219.0,86218.0,0.69705009]
[1765826759183,0.17012074,86219.0,86218.0,0.69905009]
[1765826759585,0.17012074,86219.0,86218.0,0.69405009]
[1765826759784,0.17012074,86219.0,86218.0,0.69605009]
[1765826760083,0.00012074,86219.0,86218.0,1.09605009]
[1765826760274,0.18012074,86219.0,86218.0,1.09605009]
[1765826761586,0.18012074,86219.0,86218.0,0.69605009]
[1765826761976,1.24195074,86219.0,86218.0,0.35144009]
[1765826762181,0.54092074,86219.0,86218.0,0.72459879]
[1765826762687,0.18012074,86219.0,86218.0,0.72459879]
[1765826762888,0.18012074,86219.0,86218.0,1.12459879]
[1765826763088,7.4e-07,86219.0,86218.0,1.12459879]
[1765826763476,0.16000074,86219.0,86218.0,1.12459879]
[1765826764581,0.16000074,86219.0,86218.0,0.72459879]
[1765826764784,1.20717074,86219.0,86218.0,0.71300009]
[1765826764986,1.20717074,86219.0,86218.0,0.02443009]
[1765826765283,1.20717074,86219.0,86218.0,0.37462009]
[1765826765490,1.20717074,86219.0,86218.0,0.71300009]
[1765826765784,1.20717074,86219.0,86218.0,0.02443009]
[1765826767088,1.20717074,86219.0,86218.0,0.02558372]
[1765826767288,1.20717074,86219.0,86218.0,0.02443009]
[1765826767489,1.20717074,86219.0,86218.0,0.02610302]
[1765826767684,1.20717074,86219.0,86218.0,0.02636267]
[1765826767994,1.20717074,86219.0,86218.0,0.02588197]
[1765826768285,1.20717074,86219.0,86218.0,0.02614162]
[1765826768490,1.20717074,86219.0,86218.0,0.02640127]
[1765826768694,1.20717074,86219.0,86218.0,0.026593]
[1765826768991,0.52080074,86219.0,86218.0,0.715163]
[1765826769488,0.16000074,86219.0,86218.0,0.715163]
[1765826769688,7.4e-07,86219.0,86218.0,0.026593]
[1765826769883,0.18000074,86219.0,86218.0,0.715163]
[1765826770182,7.4e-07,86219.0,86218.0,0.026593]
[1765826770889,0.18000074,86219.0,86218.0,0.715163]
[1765826771690,7.4e-07,86219.0,86218.0,0.026593]
[1765826771895,0.17000074,86219.0,86218.0,0.715163]
[1765826772389,0.00017398,86227.0,86219.0,0.0115986]
[1765826772588,0.3608,86237.0,86236.0,0.7001663]
[1765826772788,0.4308,86237.0,86236.0,0.70332921]
[1765826772988,0.5308,86237.0,86236.0,0.70332921]
[1765826773488,0.53089472,86237.0,86236.0,0.70332921]
[1765826774587,0.86675472,86237.0,86236.0,0.70332921]
[1765826775094,0.86875472,86237.0,86236.0,0.70332921]
[1765826775794,0.86975472,86237.0,86236.0,0.70332921]
[1765826775992,0.86975472,86237.0,86236.0,0.704352]
[1765826776983,0.86975472,86237.0,86236.0,0.70490957]
[1765826777490,0.53389472,86237.0,86236.0,0.70490957]
[1765826777793,0.53089472,86237.0,86236.0,0.70490957]
[1765826777991,0.53089472,86237.0,86236.0,0.70790957]
[1765826778686,0.42089472,86237.0,86236.0,0.70790957]
[1765826778986,0.42089472,86237.0,86236.0,0.70590957]
[1765826779179,0.42089472,86237.0,86236.0,0.70790957]
[1765826779487,0.00017398,86245.0,86244.0,0.7001652]
[1765826779695,0.0115906,86279.0,86264.0,0.7001625]
[1765826779696,0.5852,86265.0,86264.0,0.7001625]
[1765826779884,1.10689671,86265.0,86264.0,0.7001625]
[1765826780080,1.10689671,86265.0,86264.0,0.70490577]
[1765826781191,1.10789671,86265.0,86264.0,0.69331327]
[1765826781681,1.10889671,86265.0,86264.0,0.69331327]
[1765826782089,0.77303671,86265.0,86264.0,0.69331327]
[1765826782292,0.18783671,86265.0,86264.0,0.69331327]
[1765826782491,0.02783671,86265.0,86264.0,0.69331327]
[1765826782800,0.21783671,86265.0,86264.0,0.69331327]
[1765826782997,0.02783671,86265.0,86264.0,0.69331327]
[1765826783298,0.002,86265.0,86264.0,0.69331327]
[1765826783498,0.00017398,86273.0,86272.0,0.7001614]
[1765826783691,0.77233146,86273.0,86272.0,0.68857]
[1765826783883,0.68637,86272.0,86271.0,0.0115914]
[1765826784090,0.03578748,86272.0,86271.0,0.70490467]
[1765826784497,0.19578748,86272.0,86271.0,0.70490467]
[1765826784690,0.03578748,86272.0,86271.0,0.70490467]
[1765826785093,0.3608,86280.0,86279.0,0.7001605]
[1765826785393,0.5208,86280.0,86279.0,0.7001605]
[1765826785582,0.16,86280.0,86279.0,0.7001605]
[1765826786191,0.16,86280.0,86279.0,0.70490377]
[1765826786398,0.16,86280.0,86279.0,0.72257658]
[1765826786799,0.00017387,86288.0,86287.0,0.7001594]
[1765826786997,0.50603387,86288.0,86287.0,0.7001594]
[1765826787299,0.85654387,86288.0,86287.0,0.69331327]
[1765826787495,0.85654387,86288.0,86287.0,0.70490267]
[1765826787694,0.85654387,86288.0,86287.0,0.00474327]
[1765826787896,0.85654387,86288.0,86287.0,0.69331327]
[1765826788093,0.86813317,86288.0,86287.0,0.69331327]
[1765826788291,0.86813317,86288.0,86287.0,0.35593327]
[1765826788799,0.86813317,86288.0,86287.0,0.00574327]
[1765826789298,0.17017387,86288.0,86287.0,0.69431327]
[1765826790187,0.17117387,86288.0,86287.0,0.69431327]
[1765826790794,0.05117387,86288.0,86287.0,0.69331327]
[1765826790994,0.05117387,86288.0,86287.0,0.69531327]
[1765826791408,0.00117387,86288.0,86287.0,0.69531327]
[1765826791591,0.08318541,86312.0,86287.0,0.69531327]
[1765826791592,0.06219388,86305.0,86304.0,0.67109]
[1765826791788,0.2,86305.0,86304.0,0.67109]
[1765826792205,0.2,86305.0,86304.0,0.67583327]
[1765826792794,0.91512,86305.0,86304.0,0.67583327]
[1765826792997,0.91512,86305.0,86304.0,0.34122327]
[1765826793300,0.91612,86305.0,86304.0,0.67127327]
[1765826797198,0.94160418,86305.0,86304.0,0.67127327]
[1765826798398,0.94160418,86305.0,86304.0,0.00474327]
[1765826798702,0.8170475,86301.0,86300.0,4e-05]
[1765826798908,1.36333168,86301.0,86300.0,4e-05]
[1765826799106,0.69155,86299.0,86298.0,0.00231756]
[1765826799306,0.69155,86299.0,86259.0,0.0115931]
[1765826799307,0.69155,86297.0,86259.0,0.0115931]
[1765826799504,0.0115898,86285.0,86284.0,0.0115896]
[1765826799701,1.08942398,86285.0,86284.0,0.0115896]